bitfinex/quotes_SOLUSD_20251030
["timestamp","ask_amount","ask_price","bid_price","bid_amount"]
[1761788656720,2.02658361,194.77,194.72,0.72]
[1761788656721,2.52658361,194.77,194.72,0.72]
[1761788656913,1.21,194.75,194.71,2.02658361]
[1761788657117,3.23658361,194.75,194.7,2.02658361]
[1761788657426,0.71,194.74,194.7,2.02658361]
[1761788657934,0.5,194.75,194.71,2.02658361]
[1761788658123,1.21,194.75,194.71,2.02658361]
[1761788660335,1.21,194.75,194.71,2.74658361]
[1761788660738,102.1,194.79,194.73,2.02658361]
[1761788660739,0.5,194.78,194.73,2.02658361]
[1761788661123,1.21,194.78,194.73,2.74658361]
[1761788661324,3.23658361,194.78,194.73,2.74658361]
[1761788662224,2.73658361,194.77,194.72,2.02658361]
[1761788662545,0.5,194.76,194.72,2.02658361]
[1761788662732,0.5,194.76,194.72,2.69658361]
[1761788663335,1.18,194.76,194.72,2.69658361]
[1761788663921,0.5,194.77,194.73,2.69658361]
[1761788664736,0.68,194.76,194.72,2.02658361]
[1761788665043,2.70658361,194.76,194.71,2.02658361]
[1761788665536,2.70658361,194.76,194.71,2.69658361]
[1761788665943,2.70658361,194.76,194.71,7.8324095]
[1761788666123,2.70658361,194.76,194.71,2.69658361]
[1761788666319,1.18,194.75,194.7,4.29779514]
[1761788666526,3.20658361,194.75,194.7,2.02658361]
[1761788666732,0.68,194.74,194.7,7.83268407]
[1761788667042,0.68,194.74,194.71,2.02658361]
[1761788667540,0.5,194.75,194.72,0.67]
[1761788667747,0.5,194.75,194.72,2.69658361]
[1761788667923,0.5,194.76,194.72,2.02658361]
[1761788668124,3.20658361,194.76,194.71,5.80582621]
[1761788668325,3.20658361,194.76,194.71,7.83240982]
[1761788669434,0.68,194.75,194.71,2.02658361]
[1761788669622,0.5,194.74,194.71,2.02658361]
[1761788669834,1.18,194.75,194.71,2.69658361]
[1761788670150,1.18,194.75,194.71,2.02658361]
[1761788670338,1.18,194.75,194.7,7.16261101]
[1761788670523,1.18,194.75,194.71,0.67]
[1761788671651,0.5,194.75,194.71,5.80581664]
[1761788672345,0.5,194.75,194.71,7.83240025]
[1761788672531,0.5,194.75,194.71,7.16240025]
[1761788672731,0.5,194.77,194.72,2.69658361]
[1761788673146,1.18,194.77,194.73,2.02658361]
[1761788674048,0.5,194.77,194.73,7.83186816]
[1761788674264,1.18,194.77,194.73,7.83186816]
[1761788674560,0.5,194.77,194.74,0.67]
[1761788674754,122.692,194.78,194.74,2.69658361]
[1761788675051,123.372,194.78,194.74,2.02658361]
[1761788675353,0.68,194.77,194.74,3.16946062]
[1761788675663,123.372,194.78,194.73,3.16946062]
[1761788675826,123.372,194.78,194.73,3.83946062]
[1761788676027,122.692,194.78,194.74,0.67]
[1761788676248,123.372,194.78,194.74,0.67]
[1761788676552,122.692,194.78,194.74,0.67]
[1761788676748,102.1,194.78,194.74,0.67]
[1761788677049,102.6,194.78,194.74,0.67]
[1761788677259,102.6,194.78,194.74,3.83946062]
[1761788677657,102.6,194.78,194.75,0.67]
[1761788677850,102.1,194.78,194.75,0.67]
[1761788678154,102.1,194.78,194.75,3.16946062]
[1761788678155,102.6,194.78,194.75,3.16946062]
[1761788679037,102.6,194.78,194.76,3.16946062]
[1761788680939,102.6,194.78,194.75,8.97419496]
[1761788681431,102.6,194.78,194.75,0.67]
[1761788681631,103.28,194.78,194.74,3.16946062]
[1761788681854,102.78,194.78,194.74,3.83946062]
[1761788682155,0.68,194.77,194.72,4.29779514]
[1761788682360,4.34946062,194.77,194.71,13.2729652]
[1761788682538,3.16946062,194.76,194.71,4.29779514]
[1761788682739,3.66946062,194.75,194.71,4.29779514]
[1761788682935,4.34946062,194.75,194.7,4.29779514]
[1761788683135,3.16946062,194.73,194.7,4.29779514]
[1761788683340,0.5,194.72,194.7,4.29779514]
[1761788683561,1.18,194.72,194.69,4.29779514]
[1761788685361,1.18,194.72,194.68,9.43441671]
[1761788686051,0.5,194.72,194.68,13.27387733]
[1761788686250,30.38082769,194.77,194.7,3.16946062]
[1761788686450,3.16946062,194.75,194.7,3.16946062]
[1761788686656,0.5,194.74,194.7,3.16946062]
[1761788686960,1.18,194.74,194.7,3.16946062]
[1761788687134,0.5,194.74,194.7,3.16946062]
[1761788687538,1.18,194.74,194.7,3.83946062]
[1761788688544,0.5,194.74,194.7,3.83946062]
[1761788688755,0.5,194.75,194.71,0.67]
[1761788689243,1.18,194.75,194.71,0.67]
[1761788689544,1.18,194.75,194.7,7.46725576]
[1761788689745,4.34946062,194.75,194.7,4.96779514]
[1761788690040,4.34946062,194.75,194.7,8.13725576]
[1761788690971,4.34946062,194.75,194.7,13.27335824]
[1761788691198,3.66946062,194.75,194.71,0.67]
[1761788691350,4.34946062,194.75,194.71,4.96779514]
[1761788691959,1.18,194.75,194.71,8.13725576]
[1761788692158,0.5,194.75,194.71,8.13725576]
[1761788692779,0.5,194.75,194.71,4.96779514]
[1761788693375,0.5,194.75,194.71,12.60302513]
[1761788693577,0.5,194.76,194.72,3.83946062]
[1761788693950,1.16,194.76,194.71,7.46725576]
[1761788694279,4.32946062,194.76,194.71,7.46725576]
[1761788694483,0.66,194.75,194.71,4.29779514]
[1761788694664,0.66,194.75,194.71,9.4336365]
[1761788694864,3.66946062,194.76,194.71,10.1036365]
[1761788695072,0.66,194.75,194.71,10.1036365]
[1761788695678,0.66,194.75,194.71,13.27309712]
[1761788696456,3.66946062,194.76,194.71,13.27309712]
[1761788696982,0.66,194.75,194.71,13.27309712]
[1761788697388,0.5,194.76,194.71,12.60309712]
[1761788697579,0.5,194.76,194.72,3.83946062]
[1761788697580,1.16,194.76,194.72,3.83946062]
[1761788697782,1.16,194.76,194.71,13.27309712]
[1761788697965,0.66,194.75,194.71,8.13725576]
[1761788698372,1.16,194.75,194.71,8.13725576]
[1761788699069,0.5,194.75,194.72,0.67]
[1761788699382,3.66946062,194.76,194.72,0.67]
[1761788699581,4.32946062,194.76,194.72,4.96779514]
[1761788700592,0.5,194.76,194.73,0.67]
[1761788700764,0.5,194.77,194.74,4.29779514]
[1761788701282,0.5,194.77,194.74,4.96779514]
[1761788701783,0.5,194.77,194.74,8.13725576]
[1761788702871,3.82946062,194.76,194.71,4.29779514]
[1761788703070,4.32946062,194.75,194.71,4.29779514]
[1761788703308,4.32946062,194.75,194.69,3.16946062]
[1761788703309,4.32946062,194.75,194.7,4.29779514]
[1761788703499,3.16946062,194.73,194.69,4.29779514]
[1761788703706,3.16946062,194.7,194.68,4.29779514]
[1761788703877,4.32946062,194.69,194.66,4.29779514]
[1761788704085,4.32946062,194.69,194.64,4.29779514]
[1761788704086,3.16946062,194.67,194.64,4.29779514]
[1761788704271,20.592,194.68,194.61,4.29779514]
[1761788704272,3.16946062,194.65,194.61,4.29779514]
[1761788704477,0.5,194.66,194.62,4.29779514]
[1761788704709,0.5,194.66,194.62,4.96779514]
[1761788705086,1.16,194.66,194.61,7.46725576]
[1761788705392,3.82946062,194.65,194.6,3.36946062]
[1761788705709,0.5,194.64,194.6,8.50820122]
[1761788705909,0.5,194.64,194.6,6.0087406]
[1761788706111,0.5,194.64,194.6,4.03946062]
[1761788707206,1.16,194.64,194.6,4.03946062]
[1761788707400,0.5,194.64,194.6,4.03946062]
[1761788707587,0.5,194.64,194.6,9.17819887]
[1761788707912,9.78882769,194.68,194.6,9.17819887]
[1761788707913,3.66946062,194.67,194.61,3.83946062]
[1761788708094,3.16946062,194.66,194.61,3.83946062]
[1761788708288,0.5,194.65,194.61,0.67]
[1761788709307,0.5,194.65,194.61,5.80847468]
[1761788709680,0.5,194.65,194.61,8.9779353]
[1761788709880,1.16,194.66,194.61,8.9779353]
[1761788710499,1.16,194.66,194.61,8.3079353]
[1761788710826,0.5,194.66,194.62,3.83946062]
[1761788710996,102.76,194.73,194.65,3.16946062]
[1761788711199,0.5,194.72,194.69,3.16946062]
[1761788711496,0.5,194.72,194.69,8.305767]
[1761788711703,12.95828831,194.76,194.7,3.83946062]
[1761788711884,0.5,194.75,194.71,3.16946062]
[1761788712394,0.5,194.75,194.71,3.83946062]
[1761788712594,1.16,194.75,194.71,3.16946062]
[1761788712792,1.16,194.75,194.7,3.16946062]
[1761788713188,0.66,194.74,194.7,3.16946062]
[1761788713790,0.66,194.74,194.7,8.98548179]
[1761788714198,0.5,194.75,194.7,8.98548179]
[1761788714399,0.5,194.75,194.71,3.16946062]
[1761788714593,3.66946062,194.77,194.71,3.84946062]
[1761788714805,4.38946062,194.77,194.71,3.84946062]
[1761788715407,0.72,194.76,194.71,3.16946062]
[1761788715602,0.5,194.75,194.7,8.3055344]
[1761788715797,0.5,194.75,194.69,0.68]
[1761788715798,3.16946062,194.74,194.69,3.16946062]
[1761788715998,3.16946062,194.7,194.63,0.68]
[1761788716204,0.5,194.73,194.62,8.98744099]
[1761788716205,3.16946062,194.68,194.62,8.98744099]
[1761788716405,0.5,194.67,194.62,8.98744099]
[1761788716905,0.5,194.67,194.63,0.68]
[1761788717416,4.38946062,194.67,194.61,8.30792505]
[1761788717720,3.16946062,194.66,194.6,6.0184914]
[1761788717889,0.5,194.65,194.61,3.84946062]
[1761788718093,102.1,194.69,194.62,0.68]
[1761788718094,3.16946062,194.67,194.62,0.68]
[1761788718294,0.5,194.66,194.62,0.68]
[1761788718609,0.5,194.66,194.6,0.2]
[1761788718610,4.38946062,194.66,194.6,0.2]
[1761788718914,3.16946062,194.65,194.6,0.2]
[1761788719120,0.5,194.64,194.6,0.2]
[1761788719822,0.5,194.64,194.6,6.01873053]
[1761788720324,1.22,194.64,194.6,0.88]
[1761788720502,1.22,194.64,194.6,0.2]
[1761788720705,0.5,194.64,194.6,0.88]
[1761788720903,0.5,194.65,194.6,0.88]
[1761788721114,1.22,194.65,194.6,0.88]
[1761788721311,1.22,194.65,194.6,6.01870804]
[1761788721496,1.22,194.65,194.61,0.68]
[1761788721497,0.5,194.65,194.61,0.68]
[1761788721696,0.5,194.68,194.64,3.16946062]
[1761788721921,102.1,194.69,194.67,3.16946062]
[1761788722319,102.1,194.69,194.68,3.16946062]
[1761788723326,102.1,194.69,194.68,3.86946062]
[1761788723626,102.1,194.69,194.68,9.00609509]
[1761788725926,102.1,194.69,194.68,3.86946062]
[1761788726225,102.1,194.69,194.68,9.00609509]
[1761788728117,0.5,194.73,194.68,9.00609509]
[1761788728322,102.1,194.74,194.69,3.86946062]
[1761788728523,102.1,194.74,194.7,3.16946062]
[1761788728717,0.5,194.73,194.7,3.16946062]
[1761788729218,0.5,194.73,194.69,3.16946062]
[1761788729416,0.5,194.73,194.69,3.86946062]
[1761788729736,102.6,194.74,194.7,3.86946062]
[1761788729905,0.5,194.73,194.7,3.86946062]
[1761788730104,0.5,194.73,194.7,8.3054997]
[1761788730529,102.77,194.74,194.7,8.3054997]
[1761788731112,102.1,194.74,194.7,9.0054997]
[1761788731530,102.6,194.74,194.7,9.0054997]
[1761788731707,102.6,194.74,194.7,3.16946062]
[1761788731913,103.27,194.74,194.7,3.16946062]
[1761788732110,102.77,194.74,194.7,3.16946062]
[1761788732438,102.77,194.74,194.7,8.3055342]
[1761788732439,0.5,194.73,194.7,8.3055342]
[1761788735136,0.5,194.73,194.7,3.16946062]
[1761788735336,0.5,194.73,194.7,2.02917533]
[1761788735914,102.1,194.74,194.71,0.7]
[1761788736250,102.1,194.74,194.72,2.02917533]
[1761788736428,102.77,194.79,194.73,2.02917533]
[1761788736739,0.5,194.78,194.75,2.02917533]
[1761788737129,1.17,194.78,194.75,2.02917533]
[1761788737317,1.17,194.78,194.75,5.13477959]
[1761788737515,0.5,194.78,194.75,5.13477959]
[1761788737725,102.1,194.79,194.76,0.7]
[1761788737915,102.6,194.79,194.75,5.83477959]
[1761788738451,103.27,194.79,194.75,5.83477959]
[1761788738611,102.77,194.79,194.75,5.83477959]
[1761788739239,102.1,194.79,194.75,5.83477959]
[1761788739536,102.6,194.79,194.75,5.83477959]
[1761788739715,102.6,194.79,194.73,17.97352433]
[1761788740133,102.6,194.79,194.74,0.7]
[1761788740328,0.67,194.78,194.72,14.2392123]
[1761788740635,0.67,194.78,194.73,2.72917533]
[1761788740837,0.67,194.78,194.74,2.02917533]
[1761788741272,102.6,194.79,194.74,2.72917533]
[1761788741558,103.27,194.79,194.74,2.72917533]
[1761788741761,102.77,194.79,194.74,2.72917533]
[1761788742068,0.5,194.78,194.74,7.86399103]
[1761788742267,0.5,194.78,194.75,2.02917533]
[1761788742577,0.5,194.78,194.75,2.72917533]
[1761788742786,1.17,194.78,194.75,2.02917533]
[1761788743079,0.5,194.78,194.75,2.02917533]
[1761788743447,1.17,194.78,194.75,2.02917533]
[1761788743649,0.5,194.78,194.75,2.02917533]
[1761788743850,0.5,194.78,194.75,7.16395708]
[1761788744293,102.6,194.79,194.75,7.86395708]
[1761788744459,0.5,194.78,194.75,7.86395708]
[1761788744779,1.17,194.78,194.75,2.02917533]
[1761788745264,0.5,194.78,194.75,2.02917533]
[1761788745878,102.6,194.79,194.76,0.7]
[1761788746081,102.1,194.79,194.76,0.7]
[1761788746263,102.6,194.79,194.76,0.7]
[1761788746766,103.27,194.79,194.75,5.13473976]
[1761788746967,102.77,194.79,194.75,2.02917533]
[1761788747277,102.77,194.79,194.75,2.72917533]
[1761788747698,102.77,194.79,194.75,0.7]
[1761788748376,102.77,194.79,194.75,5.83472493]
[1761788748980,0.67,194.78,194.74,2.02917533]
[1761788749284,1.17,194.78,194.74,7.16416953]
[1761788749461,1.17,194.78,194.74,7.86416953]
[1761788750266,0.5,194.78,194.75,0.7]
[1761788750465,0.5,194.78,194.74,7.86416953]
[1761788750986,0.5,194.78,194.74,7.16416953]
[1761788751168,0.5,194.78,194.75,0.7]
[1761788752577,0.5,194.78,194.75,0.68]
[1761788752779,0.5,194.78,194.74,7.16416953]
[1761788753085,0.5,194.78,194.75,0.68]
[1761788753293,102.1,194.79,194.75,2.70917533]
[1761788753487,102.6,194.79,194.75,2.70917533]
[1761788753688,102.1,194.79,194.76,0.68]
[1761788754193,102.6,194.79,194.76,0.68]
[1761788754779,102.1,194.79,194.76,5.81446586]
[1761788757092,102.1,194.79,194.77,2.70917533]
[1761788757294,102.1,194.79,194.78,2.02917533]
[1761788757678,24.74,194.8,194.78,2.70917533]
[1761788757871,24.74,194.8,194.78,2.02917533]
[1761788758076,24.74,194.8,194.78,2.70917533]
[1761788758900,24.74,194.8,194.78,0.68]
[1761788759204,24.74,194.8,194.79,0.68]
[1761788759387,23.3,194.8,194.79,4.73835066]
[1761788759570,23.3,194.8,194.79,4.88051223]
[1761788759771,23.3,194.8,194.79,0.82216157]
[1761788760087,23.3,194.8,194.79,23.3233369]
[1761788760288,23.3,194.8,194.79,22.62117533]
[1761788760601,23.3,194.8,194.79,23.18117533]
[1761788761195,23.3,194.8,194.79,7.72290909]
[1761788761496,23.3,194.8,194.79,28.31490909]
[1761788761678,23.3,194.8,194.79,28.97044403]
[1761788761872,23.3,194.8,194.79,28.45707066]
[1761788762295,1e-08,194.8,194.79,28.45707066]
[1761788763489,1e-08,194.8,194.79,38.24589835]
[1761788763702,0.1,194.89,194.83,0.14216157]
[1761788763881,0.1,194.89,194.88,2.02917533]
[1761788764386,0.1,194.89,194.88,2.58917533]
[1761788764585,0.1,194.89,194.88,2.02917533]
[1761788765192,0.1,194.89,194.87,2.02917533]
[1761788765890,0.1,194.89,194.87,7.1606313]
[1761788766092,0.1,194.89,194.88,2.58917533]
[1761788766318,0.1,194.89,194.87,5.69145597]
[1761788766503,0.1,194.89,194.88,2.02917533]
[1761788766680,0.1,194.89,194.88,2.58917533]
[1761788767396,0.1,194.89,194.88,7.72053821]
[1761788767793,0.1,194.89,194.88,7.16053821]
[1761788768176,0.81,194.89,194.83,21.152]
[1761788768420,2.83917533,194.89,194.83,2.02917533]
[1761788768582,2.02917533,194.87,194.8,2.02917533]
[1761788768780,2.52917533,194.86,194.79,2.02917533]
[1761788768988,0.5,194.86,194.79,2.02917533]
[1761788769183,0.71,194.85,194.8,2.02917533]
[1761788769386,0.71,194.85,194.8,7.16252743]
[1761788769603,0.71,194.85,194.8,2.02917533]
[1761788770018,0.71,194.85,194.78,7.16298963]
[1761788770019,2.73917533,194.85,194.78,7.16298963]
[1761788770311,2.02917533,194.83,194.76,2.02917533]
[1761788770484,0.5,194.82,194.76,2.02917533]
[1761788770685,0.71,194.82,194.76,2.02917533]
[1761788770988,0.71,194.82,194.77,2.02917533]
[1761788771385,0.71,194.82,194.78,5.13399733]
[1761788772209,0.71,194.82,194.76,7.16369987]
[1761788772603,0.71,194.82,194.74,20.592]
[1761788772604,2.52917533,194.81,194.74,25.72682912]
[1761788772801,2.02917533,194.78,194.72,7.16475462]
[1761788773098,2.02917533,194.78,194.71,4.29365147]
[1761788773099,3.23917533,194.77,194.71,2.02917533]
[1761788773305,2.73917533,194.77,194.71,7.16482531]
[1761788773504,0.71,194.76,194.71,7.16482531]
[1761788775396,0.71,194.76,194.71,5.13564998]
[1761788775713,0.71,194.76,194.73,5.13531556]
[1761788777419,0.71,194.76,194.72,2.02917533]
[1761788777609,0.71,194.76,194.72,7.16475022]
[1761788778722,0.71,194.76,194.7,7.16528216]
[1761788779031,0.71,194.76,194.71,2.02917533]
[1761788779735,0.71,194.82,194.75,2.02917533]
[1761788779903,0.71,194.8,194.78,2.02917533]
[1761788780522,0.71,194.8,194.79,2.02917533]
[1761788780711,0.71,194.82,194.79,2.02917533]
[1761788781631,0.71,194.86,194.82,5.13294322]
[1761788781931,1.31,194.89,194.84,2.02917533]
[1761788782308,1.31,194.89,194.85,2.02917533]
[1761788782309,0.79,194.89,194.85,2.02917533]
[1761788782614,0.79,194.89,194.84,2.02917533]
[1761788782934,0.79,194.89,194.85,2.02917533]
[1761788783611,0.1,194.89,194.86,7.16106489]
[1761788783933,0.1,194.89,194.87,2.02917533]
[1761788784517,0.1,194.89,194.88,2.02917533]
[1761788784701,0.1,194.89,194.87,2.02917533]
[1761788784928,0.1,194.89,194.86,7.16106489]
[1761788785717,0.79,194.89,194.85,5.13213331]
[1761788785921,3.31917533,194.89,194.83,5.13246881]
[1761788786113,2.02917533,194.86,194.81,5.13318563]
[1761788786434,0.5,194.85,194.81,5.13318563]
[1761788786617,0.5,194.85,194.79,2.02917533]
[1761788786618,1.19,194.85,194.79,7.16265367]
[1761788787035,0.69,194.84,194.79,7.16265367]
[1761788787330,21.282,194.88,194.82,2.02917533]
[1761788787509,0.69,194.88,194.84,2.02917533]
[1761788787712,0.69,194.88,194.84,5.13241634]
[1761788788635,0.69,194.88,194.82,0.56]
[1761788788636,0.69,194.88,194.82,5.1327652]
[1761788788837,2.02917533,194.86,194.8,7.1626414]
[1761788789022,2.52917533,194.87,194.8,19.99631696]
[1761788789315,3.21917533,194.88,194.82,2.02917533]
[1761788789533,1.19,194.88,194.83,2.02917533]
[1761788789746,0.69,194.88,194.84,2.02917533]
[1761788789917,0.69,194.88,194.85,5.13215293]
[1761788790410,0.69,194.88,194.83,2.02917533]
[1761788790610,2.71917533,194.88,194.82,2.02917533]
[1761788791437,0.6,194.89,194.8,2.02917533]
[1761788791438,2.02917533,194.86,194.8,2.02917533]
[1761788791938,0.69,194.85,194.81,5.13320671]
[1761788793120,1.19,194.85,194.81,5.13320671]
[1761788793325,0.69,194.85,194.81,5.13320671]
[1761788793527,0.69,194.84,194.81,5.13320671]
[1761788793723,0.69,194.84,194.78,2.02917533]
[1761788794041,2.71917533,194.84,194.78,7.16293757]
[1761788794530,0.69,194.83,194.78,7.16293757]
[1761788795646,0.69,194.83,194.79,20.592]
[1761788796248,0.69,194.83,194.79,25.72562531]
[1761788796819,0.69,194.83,194.78,20.592]
[1761788797455,3.85801126,194.83,194.77,8.30225036]
[1761788797839,0.69,194.82,194.77,8.30225036]
[1761788798521,0.69,194.82,194.78,25.72579104]
[1761788798714,0.69,194.82,194.78,28.8938023]
[1761788799154,0.69,194.82,194.78,8.3018023]
[1761788799728,0.69,194.82,194.77,3.16801126]
[1761788801360,0.5,194.81,194.77,3.16801126]
[1761788801656,0.5,194.81,194.76,5.13452454]
[1761788801860,0.69,194.8,194.76,5.13452454]
[1761788802666,0.69,194.8,194.76,3.16801126]
[1761788802964,3.16801126,194.77,194.72,5.13557929]
[1761788803164,0.5,194.82,194.73,21.152]
[1761788803355,0.69,194.82,194.77,3.16801126]
[1761788803956,0.69,194.82,194.78,3.16801126]
[1761788804453,0.69,194.82,194.79,5.13373376]
[1761788806774,0.69,194.82,194.77,8.30227218]
[1761788807554,1.19,194.82,194.77,8.30227218]
[1761788807963,0.69,194.81,194.77,8.30227218]
[1761788810247,0.69,194.81,194.77,5.13426092]
[1761788810454,0.69,194.81,194.77,8.30227218]
[1761788813680,3.85801126,194.81,194.76,3.16801126]
[1761788813884,3.85801126,194.81,194.75,3.16801126]
[1761788814053,0.71,194.8,194.75,3.16801126]
[1761788814872,3.16801126,194.79,194.74,4.29365147]
[1761788815190,102.1,194.83,194.72,12.59704934]
[1761788815191,3.16801126,194.77,194.72,12.59704934]
[1761788815376,3.16801126,194.77,194.72,8.30339787]
[1761788815695,0.71,194.76,194.72,12.59704934]
[1761788816786,0.71,194.76,194.72,7.46166273]
[1761788816987,3.16801126,194.75,194.7,5.13606816]
[1761788817197,0.5,194.78,194.72,3.16801126]
[1761788817382,0.5,194.78,194.73,3.16801126]
[1761788817687,1.21,194.78,194.74,3.16801126]
[1761788817898,10.69166129,194.78,194.75,5.13478818]
[1761788818487,10.69166129,194.78,194.75,8.30279944]
[1761788818867,9.98166129,194.78,194.75,8.30279944]
[1761788819081,10.69166129,194.78,194.75,8.30279944]
[1761788819275,10.69166129,194.78,194.73,17.69182851]
[1761788819276,0.71,194.77,194.74,5.13504187]
[1761788821583,0.71,194.77,194.73,3.16801126]
[1761788821783,0.71,194.77,194.73,5.13531191]
[1761788821972,0.71,194.77,194.73,8.30332317]
[1761788823496,9.98166129,194.78,194.74,3.16801126]
[1761788823692,10.69166129,194.78,194.74,3.16801126]
[1761788823898,0.71,194.77,194.74,3.16801126]
[1761788824098,10.69166129,194.78,194.74,3.16801126]
[1761788824298,0.71,194.77,194.74,3.16801126]
[1761788825285,0.71,194.77,194.74,8.30285794]
[1761788825473,0.71,194.77,194.72,8.30347812]
[1761788825474,1.21,194.77,194.72,8.30347812]
[1761788825674,0.71,194.77,194.72,8.30347812]
[1761788825877,0.71,194.76,194.72,8.30347812]
[1761788826099,0.71,194.76,194.72,21.14242635]
[1761788826287,9.98166129,194.78,194.74,3.16801126]
[1761788826677,9.98166129,194.78,194.77,3.16801126]
[1761788827195,9.98166129,194.78,194.75,3.16801126]
[1761788827902,9.98166129,194.78,194.76,5.13452454]
[1761788828286,9.98166129,194.78,194.76,8.3025358]
[1761788828510,9.98166129,194.78,194.77,3.72801126]
[1761788828801,9.98166129,194.78,194.77,3.87017283]
[1761788829100,0.71,194.86,194.78,0.14216157]
[1761788829281,0.71,194.86,194.82,3.16801126]
[1761788829781,0.71,194.86,194.82,5.13294322]
[1761788830998,0.71,194.86,194.82,21.13331255]
[1761788832873,23.86001126,194.89,194.85,3.16801126]
[1761788832874,0.1,194.89,194.85,3.16801126]
[1761788833078,0.1,194.89,194.87,3.16801126]
[1761788833380,0.1,194.89,194.88,3.16801126]
[1761788833928,0.1,194.89,194.88,8.29937414]
[1761788834892,0.1,194.89,194.88,3.16801126]
[1761788835103,0.77,194.89,194.87,8.29958894]
[1761788835307,0.1,194.89,194.87,8.29958894]
[1761788835679,0.77,194.89,194.87,8.29958894]
[1761788836515,0.1,194.89,194.87,8.29958894]
[1761788837003,0.67,194.88,194.86,3.16801126]
[1761788837203,0.67,194.88,194.85,3.16801126]
[1761788837512,0.67,194.88,194.86,3.16801126]
[1761788837712,0.67,194.88,194.85,3.16801126]
[1761788838610,0.67,194.88,194.84,3.16801126]
[1761788838989,0.67,194.88,194.83,8.30069103]
[1761788839317,1.17,194.88,194.83,8.30069103]
[1761788839711,0.67,194.87,194.83,8.30069103]
[1761788839912,0.67,194.87,194.79,13.34739186]
[1761788839913,4.33801126,194.87,194.79,17.12766996]
[1761788840118,4.33801126,194.87,194.81,3.16801126]
[1761788840302,0.67,194.86,194.81,3.16801126]
[1761788840499,0.67,194.86,194.82,5.13294322]
[1761788842017,0.67,194.86,194.81,8.30120919]
[1761788842202,0.5,194.85,194.81,5.13319793]
[1761788842395,3.83801126,194.86,194.81,5.13319793]
[1761788842603,0.71,194.85,194.81,5.13319793]
[1761788842904,0.71,194.85,194.8,8.30146585]
[1761788843834,0.71,194.85,194.81,3.16801126]
[1761788844000,0.71,194.88,194.84,3.16801126]
[1761788844196,0.71,194.88,194.85,3.16801126]
[1761788844998,0.71,194.88,194.86,3.16801126]
[1761788845198,0.1,194.89,194.85,8.30006091]
[1761788845427,0.71,194.88,194.85,3.16801126]
[1761788845608,0.71,194.88,194.84,8.30040512]
[1761788846301,0.71,194.88,194.85,3.16801126]
[1761788846500,0.1,194.89,194.85,3.16801126]
[1761788846701,0.81,194.89,194.85,3.16801126]
[1761788847639,0.81,194.89,194.86,5.13188956]
[1761788847836,0.81,194.89,194.86,8.29990082]
[1761788847837,0.1,194.89,194.86,8.29990082]
[1761788848301,0.1,194.89,194.87,3.16801126]
[1761788848500,0.1,194.89,194.88,3.16801126]
[1761788848942,0.1,194.89,194.88,3.72801126]
[1761788849497,0.1,194.89,194.88,29.45137414]
[1761788850420,0.1,194.89,194.88,28.89137414]
[1761788851329,0.1,194.89,194.88,29.45137414]
[1761788852218,1e-08,194.89,194.88,29.59353571]
[1761788852410,1e-08,194.89,194.88,42.55037466]
[1761788853234,1e-08,194.91,194.89,10.49098926]
[1761788853436,1e-08,194.91,194.9,12.53994247]
[1761788855026,1e-08,194.92,194.91,13.09900052]
[1761788855228,1e-08,194.92,194.91,13.65900052]
[1761788855544,1e-08,194.92,194.91,18.7895736]
[1761788857443,1e-08,194.92,194.91,9.00074591]
[1761788858836,1e-08,194.92,194.91,5.27273465]
[1761788859044,1e-08,194.92,194.91,8.44074591]
[1761788859348,1e-08,194.92,194.91,7.85673341]